Cogmind - Beta 13 @@@ ROGUE MODE // 2024.07.02 @ 14:32:01 Player: Johnny5001 Result: Destroyed by Explosive Trap Performance ------------- Evolutions (2) 1000 Regions Visited (6) 1200 Robots Destroyed (63) 315 Value Destroyed (1979) 1979 Prototype IDs (5) 100 Alien Tech Used (0) 0 Bonus (275) 275 TOTAL SCORE: 4869 Bonus ------- High Alert Combat Kills 75 Entered Garrisons 200 Cogmind --------- Core Integrity 0/550 Matter 285/300 Energy 7/100 System Corruption 1% Temperature Cool (4) Movement Flying (37) Location -8/Storage Parts ------- > --- POWER (1) -------- (None) > --- PROPULSION (4) --- Flight Unit VTOL Module Improved Flight Unit Improved Flight Unit > --- UTILITY (4) ------ Heat Sink Propulsion Shielding Hacking Suite Hacking Suite > --- WEAPON (2) ------- Gauss Rifle > --- INVENTORY (5) ---- Light Treads Flight Unit Surge Thruster Light Assault Rifle Katana Peak State ------------ > --- POWER ------------ Light Nuclear Core > --- PROPULSION ------- Light Treads Light Treads Armored Treads Aluminum Leg > --- UTILITY ---------- Medium Storage Unit Hardened Light Armor Plating Reflective Plating Hacking Suite > --- WEAPON ----------- Gauss Rifle Assault Cannon > --- INVENTORY -------- Light Nuclear Core Flight Unit Improved Flight Unit Improved Flight Unit Improved Flight Unit Surge Thruster Propulsion Shielding Hacking Suite Katana [Rating: 27] Favorites ----------- Power Ion Engine Engine Ion Engine Power Core Light Nuclear Core Propulsion Light Treads Treads Light Treads Leg Aluminum Leg Hover Unit Airjet Flight Unit Improved Flight Unit Utility Medium Storage Unit Device Seismic Detector Storage Medium Storage Unit Hackware Hacking Suite Protection Hardened Light Armor Plating Weapon Assault Rifle Energy Gun Beam Rifle Ballistic Gun Assault Rifle Ballistic Cannon Assault Cannon Launcher Grenade Launcher Slashing Weapon Katana Build | -11 -10 -9 -9 -8 -8 -8 ------- Run | Yrd Mat Mat Min Mat Gar Sto Slots Evolved 4 | . . 2 . 2 . . Power . | . . . . . . . Propulsion 2 | . . 1 . 1 . . Utility 2 | . . 1 . 1 . . Weapon . | . . . . . . . Parts Attached 73 | . 10 7 2 30 17 7 Power 5 | . . 1 . 1 3 . Engine 3 | . . 1 . 1 1 . Core 2 | . . . . . 2 . Reactor . | . . . . . . . Propulsion 32 | . 3 4 . 15 5 5 Treads 18 | . 3 2 . 9 4 . Leg 4 | . . 1 . 2 1 . Wheel . | . . . . . . . Hover 3 | . . . . 3 . . Flight 7 | . . 1 . 1 . 5 Utility 15 | . 3 1 . 4 5 2 Device 4 | . 2 . . . 2 . Storage 1 | . 1 . . . . . Processor . | . . . . . . . Hackware 2 | . . . . 1 . 1 Protection 8 | . . 1 . 3 3 1 Artifact . | . . . . . . . Weapon 21 | . 4 1 2 10 4 . Energy Gun 2 | . . . . . 2 . Energy Cannon . | . . . . . . . Ballistic Gun 13 | . 4 1 1 5 2 . Ballistic Cannon 2 | . . . . 2 . . Launcher 1 | . . . 1 . . . Special Weapon . | . . . . . . . Impact Weapon . | . . . . . . . Slashing Weapon 3 | . . . . 3 . . Piercing Weapon . | . . . . . . . Special Melee Weapon . | . . . . . . . Unidentified Prototypes 3 | . . 1 . 2 . . Parts Lost 21 | . . . 1 3 16 1 Power 3 | . . . . 1 2 . Propulsion 6 | . . . . 1 5 . Utility 6 | . . . . 1 5 . Weapon 6 | . . . 1 . 4 1 Highest Loss Streak 9 | . . . 1 2 9 1 To Critical Strikes 1 | . . . . . 1 . Average Slot Usage (%) 94 | . 98 92 100 97 85 85 Engine 8 | . 14 11 11 8 3 . Treads 24 | . 19 22 33 30 23 . Leg 2 | . 8 3 . . 3 . Flight 2 | . . . . . . 34 Device 8 | . 12 11 11 8 . 9 Storage 10 | . 14 11 11 9 9 6 Hackware 4 | . . . . 6 9 10 Protection 9 | . . 11 11 11 14 8 Ballistic Gun 16 | . 28 22 21 14 6 9 Ballistic Cannon 2 | . . . . 2 6 . Naked Turns . | . . . . . . . Heaviest Build 33 | 11 18 21 21 32 33 19 Greatest Support 80 | 20 40 60 60 80 60 19 Greatest Overweight (x) 5 | . . . . . 5 . Average Overweight (x) . | . . . . . . . Largest Inventory Capacity 10 | . 10 10 10 10 10 10 Average Capacity 9 | . 9 10 10 10 10 8 Most Carried 10 | . 10 10 10 10 10 9 Average Carried 9 | . 8 9 9 9 9 6 Final Capacity 10 | 8 10 10 10 10 10 5 Final Carried 10 | 6 10 10 10 10 9 5 Class Distribution -------------------- 52% | Mutant 39% | Scavenger-Mutant 6% | Scavenger-Sprinter Dominant Class ---------------- Mutant | -10/Materials Mutant | -9/Materials Mutant | -9/Mines Scavenger-Mutant | -8/Materials Scavenger-Mutant | -8/Garrison Scavenger-Sprinter | -8/Storage Resources | -11 -10 -9 -9 -8 -8 -8 ----------- Run | Yrd Mat Mat Min Mat Gar Sto Matter Collected 2134 | 195 239 156 176 773 512 83 Remotely . | . . . . . . . Salvage Created 2410 | . 318 262 206 932 606 86 Parts 150 | . 26 20 13 51 36 4 Haulers Intercepted 5 | . 1 1 . 3 . . Recyclers Shooed 4 | . 1 1 1 1 . . Parts Field Recycled . | . . . . . . . Retrieved Matter . | . . . . . . . Parts Self-Destructed . | . . . . . . . Prevented . | . . . . . . . Kills | -11 -10 -9 -9 -8 -8 -8 ------- Run | Yrd Mat Mat Min Mat Gar Sto Combat Hostiles Destroyed 51 | . 10 3 3 16 16 3 Guns 39 | . 10 3 2 13 8 3 Cannons 11 | . . . . 3 8 . AOE 1 | . . . 1 . . . Classes Destroyed 13 | . 4 2 3 2 2 . Worker 2 | . 1 . . 1 . . Builder 2 | . . . 1 1 . . Tunneler 1 | . . . 1 . . . Hauler 5 | . 1 1 . 3 . . Recycler 2 | . . 1 1 . . . Swarmer 11 | . 6 . . . 3 2 Grunt 24 | . 4 2 2 10 6 . Brawler 1 | . . . . 1 . . Duelist 1 | . . . 1 . . . Sentry 10 | . . 1 . 4 4 1 Specialist 1 | . . . . . 1 . Hunter 2 | . . . . 1 1 . Programmer 1 | . . . . . 1 . Best Kill Streak 6 | . 4 2 6 4 3 3 Combat Bots Only 3 | . 3 2 3 3 3 3 Max Kills in Single Turn 3 | . 2 1 3 1 1 1 Gunslinging . | . . . . . . . Exploded 1 | . . . 1 . . . Melee . | . . . . . . . Uniques/NPCs Destroyed . | . . . . . . . Combat | -11 -10 -9 -9 -8 -8 -8 -------- Run | Yrd Mat Mat Min Mat Gar Sto Hostile Shots Fired 340 | . 27 21 13 62 199 18 Missed 93 | . 7 4 4 19 48 11 Damage Taken 3641 | . 269 224 167 693 2195 93 Core 664 | . 69 25 . 91 422 57 Absorbed by Shields 70 | . . . . . 70 . Redirected to Shielding 56 | . . 21 13 20 . 2 Ignored by Resistances 50 | . . . . . 50 . Core Remaining (%) 88 | 100 72 . 93 . . . Volleys Fired 200 | . 37 21 10 70 56 6 Largest 2 | . 2 2 2 2 2 2 Hottest 112 | . 40 40 40 72 112 84 Shots Fired 370 | . 74 42 15 131 100 8 Gun 300 | . 74 42 11 105 60 8 Cannon 66 | . . . . 26 40 . Launcher 4 | . . . 4 . . . Special . | . . . . . . . Kinetic 353 | . 74 42 11 131 89 6 Thermal 13 | . . . . . 11 2 Explosive 4 | . . . 4 . . . Electromagnetic . | . . . . . . . Robot Hit Streak 22 | . 9 10 6 12 22 9 Robot Miss Streak 3 | . 2 3 3 2 3 . Penetration Max 1 | . . . . 1 . 1 Secondary Targets 2 | . 2 . . . . . Max Gunslinging Chain 1 | . 1 . . . . . Shots Hit Robots 240 | . 53 24 5 86 64 8 Core Hits 105 | . 18 9 10 35 29 4 Critical Kills 2 | . . . . 1 1 . Critical Parts Destroyed 2 | . 1 . . 1 . . Critical Strikes 6 | . 1 . . 4 1 . Destroy 4 | . 1 . . 2 1 . Blast 2 | . . . . 2 . . Melee Attacks 2 | . . . . 2 . . Impact . | . . . . . . . Slashing 2 | . . . . 2 . . Piercing . | . . . . . . . Sneak Attacks . | . . . . . . . Combat Hostiles . | . . . . . . . Follow-up Attacks . | . . . . . . . Damage Inflicted 4347 | . 691 305 253 1666 1244 188 Guns 3125 | . 691 305 59 1211 671 188 Cannons 1028 | . . . . 455 573 . Explosions 184 | . . . 184 . . . Melee . | . . . . . . . Ramming 10 | . . . 10 . . . Kinetic 3981 | . 691 305 59 1666 1101 159 Thermal 172 | . . . . . 143 29 Explosive 184 | . . . 184 . . . Electromagnetic . | . . . . . . . Impact . | . . . . . . . Slashing . | . . . . . . . Piercing . | . . . . . . . Highest Corruption 2 | . 2 . . . 1 1 Average Corruption 1 | . 2 . . . 1 1 Corruption Purged . | . . . . . . . Corruption Blocked . | . . . . . . . Effects 5 | . 2 . . . 1 2 Message Errors 2 | . 1 . . . . 1 Matter Fused 1 | . . . . . 1 . Energy Discharges 1 | . 1 . . . . . Parts Rejected 1 | . . . . . . 1 Overload Shots . | . . . . . . . Overflow Damage . | . . . . . . . Projectiles . | . . . . . . . Explosions . | . . . . . . . Melee . | . . . . . . . Knockbacks 19 | . . . . 15 4 . Impact . | . . . . . . . Kinetic 19 | . . . . 15 4 . Secondary . | . . . . . . . Self-Inflicted Damage 68 | . . . 68 . . . Shots 3 | . . . 3 . . . Rammed 2 | . . . 1 1 . . Targets Rammed 2 | . . . 1 1 . . Kicked . | . . . . . . . Crushed . | . . . . . . . Highest Temperature 449 | . 2 . . 449 309 . Average Temperature 86 | . 2 . . 69 103 . Received Heat Transfer 1452 | . 96 63 54 360 870 9 Effects 6 | . . . . 4 2 . Shutdowns 1 | . . . . 1 . . Energy Bleed 2 | . . . . . 2 . Short Circuit 1 | . . . . 1 . . Damage (major) 2 | . . . . 2 . . Siege Activations . | . . . . . . . Robots Corrupted . | . . . . . . . Combat Hostiles . | . . . . . . . Parts Fried . | . . . . . . . Impact Corruptions . | . . . . . . . Robots Melted . | . . . . . . . Combat Hostiles . | . . . . . . . Parts Melted 2 | . . . . . 2 . Heat Transferred 444 | . . . . . 370 74 Parts Sabotaged . | . . . . . . . Parts Stolen . | . . . . . . . Parts Stripped . | . . . . . . . Power Chain Reactions . | . . . . . . . Alert | -11 -10 -9 -9 -8 -8 -8 ------- Run | Yrd Mat Mat Min Mat Gar Sto Peak Influence 479 | . 216 132 146 246 479 343 Initial 223 | . . 35 51 56 129 223 Average 156 | . 68 75 118 130 333 298 Maximum Alert Level 2 | . 1 . . 1 2 1 Low Security (%) 72 | . 87 100 100 88 17 . Level 1 22 | . 12 . . 11 50 100 Level 2 5 | . . . . . 32 . Level 3 . | . . . . . . . Level 4 . | . . . . . . . Level 5 . | . . . . . . . High Security . | . . . . . . . Max Security . | . . . . . . . Squads Dispatched 2 | . 1 . . 1 . . Investigation 1 | . . . . 1 . . Extermination . | . . . . . . . Reinforcement 1 | . 1 . . . . . Assault . | . . . . . . . Garrison . | . . . . . . . Intercept . | . . . . . . . Searches Triggered . | . . . . . . . Construction Impeded . | . . . . . . . Haulers Reinforced . | . . . . . . . Active Scanning Responses . | . . . . . . . Cargo Convoy Interrupts . | . . . . . . . Stealth | -11 -10 -9 -9 -8 -8 -8 --------- Run | Yrd Mat Mat Min Mat Gar Sto Distress Signals 6 | . . 2 . 4 . . Communications Jammed . | . . . . . . . Distress Signals . | . . . . . . . Times Spotted 72 | . 14 4 3 25 20 6 Peak Tracking Total 8 | . 4 2 3 4 8 3 Tactical Retreats 6 | . . 1 . . 5 . Traps | -11 -10 -9 -9 -8 -8 -8 ------- Run | Yrd Mat Mat Min Mat Gar Sto Traps Triggered 10 | . 2 . . 3 3 2 Indirectly . | . . . . . . . Trap Hack Attempts . | . . . . . . . Triggered . | . . . . . . . Disarmed . | . . . . . . . Reprogrammed . | . . . . . . . Reused . | . . . . . . . Traps Extracted . | . . . . . . . Installed . | . . . . . . . Triggered . | . . . . . . . Machines | -11 -10 -9 -9 -8 -8 -8 ---------- Run | Yrd Mat Mat Min Mat Gar Sto Machines Disabled 2 | . . . . 2 . . Max in Single Turn 1 | . . . . 1 . . Garrison Relay 1 | . . . . . 1 . Machines Repaired . | . . . . . . . Machines Dismantled . | . . . . . . . Machines Sabotaged . | . . . . . . . Overloaded Fab Kills . | . . . . . . . Hacking | -11 -10 -9 -9 -8 -8 -8 --------- Run | Yrd Mat Mat Min Mat Gar Sto Machines Accessed 16 | . 4 1 . 10 . 1 Terminals 11 | . 4 . . 6 . 1 Fabricators . | . . . . . . . Repair Stations 1 | . . . . 1 . . Recycling Units . | . . . . . . . Scanalyzers 3 | . . 1 . 2 . . Garrison Access 1 | . . . . 1 . . Total Hacks 38 | . 10 2 . 24 . 2 Successful 20 | . 3 2 . 14 . 1 Failed 18 | . 7 . . 10 . 1 Catastrophic 3 | . 1 . . 2 . . Database Lockouts . | . . . . . . . Manual 16 | . 5 . . 11 . . Terminals 27 | . 10 . . 15 . 2 Fabricators . | . . . . . . . Repair Stations 2 | . . . . 2 . . Recycling Units . | . . . . . . . Scanalyzers 8 | . . 2 . 6 . . Garrison Access 1 | . . . . 1 . . Terminal Hacks 7 | . 2 . . 4 . 1 Prototype ID Bank 1 | . 1 . . . . . Open Door 1 | . . . . . . 1 Emergency Access Points 1 | . . . . 1 . . Terminal Index 1 | . 1 . . . . . Alert Level 1 | . . . . 1 . . Locate Traps 1 | . . . . 1 . . Hauler Manifests 1 | . . . . 1 . . Fabricator Hacks . | . . . . . . . Repair Station Hacks 1 | . . . . 1 . . Scan Component 1 | . . . . 1 . . Recycling Unit Hacks . | . . . . . . . Scanalyzer 8 | . . 2 . 6 . . Insert Component 4 | . . 1 . 3 . . Analyze 4 | . . 1 . 3 . . Garrison Access Hacks 1 | . . . . 1 . . Unlock Access 1 | . . . . 1 . . Unauthorized Hacks 3 | . 1 . . 2 . . Terminals 3 | . 1 . . 2 . . Botnet 3 | . 1 . . 2 . . Fabricators . | . . . . . . . Repair Stations . | . . . . . . . Recycling Units . | . . . . . . . Scanalyzers . | . . . . . . . Garrison Access . | . . . . . . . Data Cores Recovered . | . . . . . . . Used . | . . . . . . . Hacking Detections 14 | . 4 . . 9 . 1 Full Trace Events . | . . . . . . . Feedback Events . | . . . . . . . Feedback Blocked . | . . . . . . . Robot Schematics Acquired . | . . . . . . . Robots Built . | . . . . . . . Authchips . | . . . . . . . Time . | . . . . . . . Total Robot Build Rating . | . . . . . . . Part Schematics Acquired 4 | . . 1 . 3 . . Parts Built . | . . . . . . . Authchips . | . . . . . . . Time . | . . . . . . . Total Part Build Rating . | . . . . . . . Parts Repaired . | . . . . . . . Time . | . . . . . . . Parts Recycled . | . . . . . . . Recycled Matter . | . . . . . . . Retrieved Matter . | . . . . . . . Retrieved Components . | . . . . . . . Parts Scanalyzed 4 | . . 1 . 3 . . Part Schematics Acquired 4 | . . 1 . 3 . . Parts Damaged . | . . . . . . . Bothacking | -11 -10 -9 -9 -8 -8 -8 ------------ Run | Yrd Mat Mat Min Mat Gar Sto Used RIF Installer . | . . . . . . . Robots Hacked . | . . . . . . . Non-combat . | . . . . . . . Combat . | . . . . . . . Robot Hacks Applied . | . . . . . . . Relay Couplers Released 4 | . . . . . 4 . Machine Destruction 4 | . . . . . 4 . Fabnet Peak Effective % . | . . . . . . . Robots Rewired . | . . . . . . . Allies Hacked . | . . . . . . . Hacks Repelled . | . . . . . . . Allies | -11 -10 -9 -9 -8 -8 -8 -------- Run | Yrd Mat Mat Min Mat Gar Sto Total Allies . | . . . . . . . Largest Group . | . . . . . . . Highest-Rated Group . | . . . . . . . Highest-Rated Ally . | . . . . . . . Total Orders . | . . . . . . . Ally Attacks . | . . . . . . . Total Damage . | . . . . . . . Kills . | . . . . . . . Allies Corrupted . | . . . . . . . Allies Melted . | . . . . . . . Intel | -11 -10 -9 -9 -8 -8 -8 ------- Run | Yrd Mat Mat Min Mat Gar Sto Robot Analysis Total . | . . . . . . . Derelict Logs Recovered . | . . . . . . . Drone Launches . | . . . . . . . Drone Recoveries . | . . . . . . . Exploration | -11 -10 -9 -9 -8 -8 -8 ------------- Run | Yrd Mat Mat Min Mat Gar Sto Turns Passed 3711 | . 772 289 362 1423 592 273 Spaces Moved 1791 | 1 360 114 208 623 179 306 Core 9 | . . . . . 9 . Treads 1361 | . 246 114 208 623 170 . Legs 115 | 1 114 . . . . . Wheels . | . . . . . . . Hover . | . . . . . . . Flight 306 | . . . . . . 306 Fastest Speed 29 | 120 120 160 160 160 160 29 Average Speed 138 | 120 147 160 160 160 184 32 Slowest Speed 300 | 120 160 160 160 162 300 37 Overloaded Moves . | . . . . . . . Propulsion Burnouts . | . . . . . . . Robots Hopped 8 | . . . . . . 8 Cave-ins Triggered . | . . . . . . . Exploration Rate (%) 31 | 2 49 13 42 55 21 36 Regions Visited 6 Branch Regions 2 Pre-discovered Areas . | . . . . . . . Known Exits Taken 1 | . . . . 1 . . Unknown Exits Taken 4 | 1 1 1 1 . . . Scrap Searched . | . . . . . . . Spaces Dug 2 | . . . . 2 . . Terrain Destroyed 36 | . . . 24 6 6 . Melee 2 | . . . . 2 . . Projectile 10 | . . . . 4 6 . AOE 24 | . . . 24 . . . Terrain Rammed . | . . . . . . . Walls Destroyed . | . . . . . . . Machines Disabled . | . . . . . . . Actions | -11 -10 -9 -9 -8 -8 -8 --------- Run | Yrd Mat Mat Min Mat Gar Sto Total 2668 | . 531 180 221 932 341 463 Wait 527 | . 106 31 . 172 84 134 Move 1769 | . 359 113 207 622 178 290 Hop 8 | . . . . . . 8 Pick Up 28 | . 8 2 1 11 . 6 Fast Attach 26 | . 2 3 . 9 11 1 Attach 14 | . . 1 1 5 2 5 Detach 3 | . . 1 . 1 1 . Swap 33 | . 8 3 1 16 4 1 Drop 46 | . 11 5 . 23 5 2 Fire 200 | . 37 21 10 70 56 6 Melee 2 | . . . . 2 . . Ram . | . . . . . . . Kick . | . . . . . . . Crush 2 | . . . 1 1 . . Escape Stasis 10 | . . . . . . 10 Rewire . | . . . . . . . Trap . | . . . . . . . Miscellaneous . | . . . . . . . Route ------- -11/Scrapyard -10/Materials (discovered 2 exits: *Mat x2) -9/Materials -9/Mines -8/Materials (discovered 3 exits: [*Fac] / *Sto / Gar) -8/Garrison -8/Storage History --------- Turn | Location | Event 1 | -11/Scrapyard | Discovered new exit (range 0) 1 | -11/Scrapyard | Entered Materials 311 | -10/Materials | Build established: Mutant 337 | -10/Materials | Discovered new exit (range 16) 712 | -10/Materials | Discovered new exit (range 14) 773 | -10/Materials | Entered another Materials area 773 | -9/Materials | Evolved 2 slots: Propulsion x1, Utility x1 803 | -9/Materials | Discovered new exit (range 9) 1062 | -9/Materials | Entered Mines 1405 | -9/Mines | Discovered new exit (range 10) 1424 | -9/Mines | Entered Materials 1424 | -8/Materials | Evolved 2 slots: Propulsion x1, Utility x1 2144 | -8/Materials | Discovered new exit (range 7) 2285 | -8/Materials | Build established: Scavenger-Mutant 2527 | -8/Materials | Discovered new exit (range 3) 2839 | -8/Materials | Identified exit to Garrison 2847 | -8/Materials | Entered Garrison 2863 | -8/Garrison | Triggered checkpoint 3189 | -8/Garrison | Triggered checkpoint 3302 | -8/Garrison | Core integrity fell below 50% 3318 | -8/Garrison | Garrison Relay disabled 3346 | -8/Garrison | Lost 9 parts (1p3n2u3w) 3413 | -8/Garrison | Discovered new exit (range 5) 3428 | -8/Garrison | Core integrity fell below 20% 3439 | -8/Garrison | Entered Storage 3467 | -8/Storage | Lost 4 parts (1p2u1w) 3712 | -8/Storage | Destroyed by Explosive Trap Last Messages --------------- 03647_ Field strength at 35. 03648_ Field strength at 25. 03649_ Field strength at 15. 03650_ Field strength at 5. 03651_ Stasis field depleted. 03651_ Dropped Lgt. Treads. 03652_ Acquired Surge Thruster. 03655_ Acquired Katana. 03657_ Beam Rifle destroyed. 03660_ Slug penetrates Wall. 03661_ System corrupted: Imp. Flight Unit rejected. 03663_ T-07 Excavator is excavating. 03688_ Acquired VTOL Module. 03692_ Connecting with Door Terminal... 03692_ Current location identified: Storage >>Open(Door) Sealed Heavy Doors opened. 03712_ Triggered Explosive Trap. 03712_ An explosion rips through the floor. Map ----- +----------------------------------------------------+ | ?????????????????????????????????????????????????? | | ?????????????????????????????????????????????????? | | ?????????????????????????????????????????????????? | | ?????????????????????????????????????????????????? | | ?????????????????????????????????????????????????? | | ?????########????????????????????????????????????? | | ???? #????????????????????????????????????? | | ???# """"" #????????????????????????????????????? | | ???# """"" ####?????????????????????????????????? | | ???# """"" """#?????????????????????????????????? | | ???# G"#?????????????????????????????????? | | ???# """"" """#?????????????????????????????????? | | ???# """"" ####?????????????????????????????????? | | ???# """"" #????????????????????????????????????? | | ##?# #????????????????????????????????????? | | #T######+######??????????????????????????????????? | | # #??????????????????????????????????? | | + #??????????????????????????????????? | | # #??????????????????????????????????? | | #### ##########?????????#+#??????????????????????? | | ???# #??????????????????# #??????????????????????? | | ???# #??????????????????# ########???????????????? | | #### #??????????????????# # #???????????????? | | # #################### # #???????????????? | | + rk + #???????????????? | | # ####################@# #???????????????? | | # #??????????????????# # #???????????????? | | ] # #??????????????????# + #???????????????? | | !# #??????????????????#+########???????????????? | | #+## #?????????????????? ??????????????????????? | | #?????????????????? ""??????????????????????? | | # #????????????????? """?????????????????????? | | # #?????????????????] R"?????????????????????? | | # #????????????????] """#????????????????????? | | # #???????????????? ?????????????????????? | | # #######+##??????#### #??????????????????????? | | #??????????#???????????????????????? | | ##+######## #??????????????????????????????????? | | #T #????# #??????????????????????????????????? | | ##" "#????# #??????????????????????????????????? | | ??!!!?????# / ?????????????????????????????????? | | ??!!!#????# # "????????????????????????????????? | | ?#####????# # ""???????????????????????????????? | | ??????????# #? ??????????????????????????????? | | ??????????# #??###?????????????????????????????? | | ??????????? #??????????????????????????????????? | | ??????????? ??????????????????????????????????? | | ??????????? ??????????????????????????????????? | | ??????????? ??????????????????????????????????? | | ???????????[ ??????????????????????????????????? | +----------------------------------------------------+ Best States ------------- Heat Dissipation 41 Energy Generation 14 Energy Capacity 265 Matter Stores 300 Matter Capacity 300 Sight Range 16 Robot Scan Range 14 Terrain Scan Density 10 Armor Coverage 300 Resistance: TH 10 Propulsion Shielding 33 Evasion (%) 64 Recoil Reduction 4 Offensive Hacking 20 Item Schematics ----------------- Propulsion Shielding | -9/Materials | Scanalyzed Reflective Plating | -8/Materials | Scanalyzed Lgt. Armor Plating | -8/Materials | Scanalyzed Surge Thruster | -8/Materials | Scanalyzed Robot Schematics ------------------ None Fabricated ------------ Nothing Alien Tech Used ----------------- None Achievements -------------- None Challenges ------------ None Game ------ Seed GaussDisruptorAutogun Manual? 0 Play Time 00:49:20 Cumulative 47.4 hours Start 2024.07.02 @ 13:44:50 End 2024.07.02 @ 14:32:01 Sessions 1 Manual Loads 0 Difficulty Rogue Special Mode None Game No. 31 Rogue 31 Adventurer 0 Explorer 0 Win Type - Total 4 Types 3/0/0/1/0/0/0/0/0 Lore% 42 Gallery% 44 Achievement% 42 Wizard Run 0 Options --------- Layout 1 ASCII 0 Keyboard 0 Movement Mouse Keybinds 0 Fullscreen 1 Font 24/Smallcaps Map View 50x35 Zoom Use 0% Tactical HUD 1 Map Filters NONE Filters NONE Steam 0 RUN: 6e9f22ce-0c10-4444-b29e-2f13b9f286dc